[Event "*** Titled Tuesday Blitz"]
[Site "Chess.com"]
[Date "2019.03.05"]
[Round "4"]
[White "andrzej"]
[Black "Bad4life"]
[Result "0-1"]
[WhiteElo "2280"]
[BlackElo "2494"]
[TimeControl "180+2"]
[EndTime "13:56:18 PST"]
[Termination "Bad4life won by resignation"]

1. d4 {[%clk 0:03:01.9]} 1... Nf6 {[%clk 0:02:59.8]} 2. Bg5 {[%clk 0:03:00.6]}
2... c5 {[%clk 0:03:00.7]} 3. d5 {[%clk 0:03:00.9]} 3... e6 {[%clk 0:03:01.7]}
4. Nc3 {[%clk 0:02:53.3]} 4... b5 {[%clk 0:02:57.8]} 5. Nxb5 {[%clk 0:02:40.9]}
5... Qa5+ {[%clk 0:02:43]} 6. Nc3 {[%clk 0:02:41.3]} 6... Nxd5 {[%clk 0:02:44]}
7. Bd2 {[%clk 0:02:41.4]} 7... Nxc3 {[%clk 0:02:36.8]} 8. Bxc3 {[%clk
0:02:42.5]} 8... Qc7 {[%clk 0:02:36.5]} 9. e4 {[%clk 0:02:43]} 9... Bb7 {[%clk
0:02:35.8]} 10. Qe2 {[%clk 0:02:13.7]} 10... Nc6 {[%clk 0:02:28]} 11. Nf3 {[%clk
0:02:10.7]} 11... a5 {[%clk 0:02:25]} 12. Qe3 {[%clk 0:02:07.1]} 12... Nb4
{[%clk 0:02:16]} 13. Bd3 {[%clk 0:01:40.4]} 13... c4 {[%clk 0:02:15]} 14. Bxb4
{[%clk 0:01:34.9]} 14... axb4 {[%clk 0:02:12.2]} 15. Be2 {[%clk 0:01:29.4]}
15... Be7 {[%clk 0:02:01.9]} 16. O-O {[%clk 0:01:25.6]} 16... O-O {[%clk
0:02:03.3]} 17. Nd2 {[%clk 0:01:24.1]} 17... d5 {[%clk 0:01:59.8]} 18. exd5
{[%clk 0:01:21.8]} 18... exd5 {[%clk 0:01:57.3]} 19. Bf3 {[%clk 0:01:17.7]}
19... Bf6 {[%clk 0:01:58.2]} 20. c3 {[%clk 0:01:14.2]} 20... Rfe8 {[%clk
0:01:53]} 21. Be4 {[%clk 0:00:54.7]} 21... dxe4 {[%clk 0:01:51.4]} 22. cxb4
{[%clk 0:00:51.8]} 22... Bxb2 {[%clk 0:01:52.1]} 23. Rab1 {[%clk 0:00:53.3]}
23... Ra3 {[%clk 0:01:51.3]} 24. Qg5 {[%clk 0:00:44]} 24... Be5 {[%clk
0:01:50.1]} 25. Rfd1 {[%clk 0:00:33.2]} 25... Bxh2+ {[%clk 0:01:50]} 26. Kh1
{[%clk 0:00:33.7]} 26... e3 {[%clk 0:01:29.4]} 27. fxe3 {[%clk 0:00:21.6]} 27...
Raxe3 {[%clk 0:01:29.2]} 28. Rbc1 {[%clk 0:00:15.3]} 28... Bf4 {[%clk
0:01:26.3]} 29. Qb5 {[%clk 0:00:13.3]} 29... Rh3+ {[%clk 0:01:16.1]} 30. Kg1
{[%clk 0:00:14.6]} 30... Be3+ {[%clk 0:01:14.9]} 31. Kf1 {[%clk 0:00:16]} 31...
Bxg2+ {[%clk 0:01:10.6]} 32. Ke2 {[%clk 0:00:13.1]} 32... Qe7 {[%clk 0:01:03.1]}
33. Qxc4 {[%clk 0:00:07.7]} 33... Bd4+ {[%clk 0:00:56.5]} 34. Ne4 {[%clk
0:00:05.6]} 34... Qxe4+ {[%clk 0:00:57.6]} 35. Kd2 {[%clk 0:00:06.9]} 35... Be3+
{[%clk 0:00:54.1]} 36. Kc3 {[%clk 0:00:07.6]} 36... Bxc1+ {[%clk 0:00:52.2]} 37.
Rd3 {[%clk 0:00:04.8]} 37... Rxd3+ {[%clk 0:00:51.7]} 38. Qxd3 {[%clk
0:00:05.9]} 38... Bb2+ {[%clk 0:00:53.1]} 0-1

[Event "*** Titled Tuesday Blitz"]
[Site "Chess.com"]
[Date "2019.03.05"]
[Round "4"]
[White "IakovUlivar"]
[Black "Muguet7"]
[Result "0-1"]
[WhiteElo "2500"]
[BlackElo "2440"]
[TimeControl "180+2"]
[EndTime "13:56:20 PST"]
[Termination "Muguet7 won by resignation"]

1. e4 {[%clk 0:03:01.9]} 1... c5 {[%clk 0:03:00.6]} 2. Nc3 {[%clk 0:02:59.9]}
2... a6 {[%clk 0:03:00.4]} 3. g3 {[%clk 0:03:00.4]} 3... e6 {[%clk 0:03:01.4]}
4. Bg2 {[%clk 0:03:01.3]} 4... Nc6 {[%clk 0:03:01.8]} 5. d3 {[%clk 0:03:01]}
5... b5 {[%clk 0:03:01]} 6. f4 {[%clk 0:03:01.9]} 6... Bb7 {[%clk 0:03:02.1]} 7.
Nf3 {[%clk 0:03:02.3]} 7... d6 {[%clk 0:03:01.9]} 8. O-O {[%clk 0:02:58.4]} 8...
Nf6 {[%clk 0:03:03.2]} 9. f5 {[%clk 0:02:58.6]} 9... Be7 {[%clk 0:03:03.8]} 10.
fxe6 {[%clk 0:02:46.1]} 10... fxe6 {[%clk 0:03:04.7]} 11. e5 {[%clk 0:02:21.8]}
11... Nxe5 {[%clk 0:02:57.8]} 12. Nxe5 {[%clk 0:02:22.6]} 12... Bxg2 {[%clk
0:02:58.2]} 13. Kxg2 {[%clk 0:02:15.2]} 13... dxe5 {[%clk 0:02:59.4]} 14. Qe2
{[%clk 0:02:00.9]} 14... Qd6 {[%clk 0:02:53.1]} 15. Bg5 {[%clk 0:01:33.1]} 15...
O-O {[%clk 0:02:53.6]} 16. Rae1 {[%clk 0:01:22]} 16... h6 {[%clk 0:02:44.1]} 17.
Bxf6 {[%clk 0:01:17.6]} 17... Bxf6 {[%clk 0:02:44.8]} 18. Ne4 {[%clk 0:01:17.1]}
18... Qd5 {[%clk 0:02:45.3]} 19. Rf3 {[%clk 0:00:52.3]} 19... Be7 {[%clk
0:02:40]} 20. c4 {[%clk 0:00:22.2]} 20... Qd4 {[%clk 0:02:36.3]} 21. Ref1 {[%clk
0:00:18.7]} 21... Rxf3 {[%clk 0:02:30.7]} 22. Rxf3 {[%clk 0:00:20.6]} 22... Rd8
{[%clk 0:02:27.7]} 23. b3 {[%clk 0:00:18.5]} 23... Rf8 {[%clk 0:01:53.9]} 24.
Rxf8+ {[%clk 0:00:17.5]} 24... Bxf8 {[%clk 0:01:55.2]} 25. h4 {[%clk 0:00:13]}
25... Be7 {[%clk 0:01:53.5]} 26. h5 {[%clk 0:00:13.8]} 26... Bg5 {[%clk
0:01:45]} 27. Kh2 {[%clk 0:00:12.5]} 27... Qe3 {[%clk 0:01:43.4]} 28. Qxe3
{[%clk 0:00:12.4]} 28... Bxe3 {[%clk 0:01:44.4]} 29. Kg2 {[%clk 0:00:13.7]}
29... bxc4 {[%clk 0:01:41.8]} 30. dxc4 {[%clk 0:00:12.3]} 30... Kf7 {[%clk
0:01:42.3]} 31. Kf3 {[%clk 0:00:13.9]} 31... Bd4 {[%clk 0:01:42.6]} 32. Ke2
{[%clk 0:00:11]} 32... Ke7 {[%clk 0:01:41.8]} 33. Kd3 {[%clk 0:00:11.9]} 33...
Kd7 {[%clk 0:01:38.7]} 34. Kc2 {[%clk 0:00:12.2]} 34... Kc6 {[%clk 0:01:39.6]}
35. a3 {[%clk 0:00:12.7]} 35... Kb6 {[%clk 0:01:35.3]} 36. b4 {[%clk 0:00:12.5]}
36... cxb4 {[%clk 0:01:32.5]} 37. axb4 {[%clk 0:00:14.4]} 37... a5 {[%clk
0:01:31.3]} 38. b5 {[%clk 0:00:11.5]} 38... a4 {[%clk 0:01:28.9]} 39. Kb1 {[%clk
0:00:10.7]} 39... Ka5 {[%clk 0:01:27.8]} 40. Ka2 {[%clk 0:00:07]} 40... Kb4
{[%clk 0:01:28.8]} 41. Nd6 {[%clk 0:00:05]} 41... Bc5 {[%clk 0:01:26.3]} 42. Nf7
{[%clk 0:00:05.3]} 42... e4 {[%clk 0:01:23.2]} 43. Ne5 {[%clk 0:00:04.6]} 43...
e3 {[%clk 0:01:23.4]} 44. Nd3+ {[%clk 0:00:04.5]} 44... Kxc4 {[%clk 0:01:24]}
45. Nf4 {[%clk 0:00:04.6]} 45... e5 {[%clk 0:01:23.7]} 46. Ne2 {[%clk
0:00:04.8]} 46... Kd3 {[%clk 0:01:24.8]} 0-1

[Event "*** Titled Tuesday Blitz"]
[Site "Chess.com"]
[Date "2019.03.05"]
[Round "4"]
[White "aa175"]
[Black "j2806"]
[Result "1-0"]
[WhiteElo "1864"]
[BlackElo "1799"]
[TimeControl "180+2"]
[EndTime "13:56:23 PST"]
[Termination "aa175 won by resignation"]

1. e4 {[%clk 0:02:52.6]} 1... c5 {[%clk 0:03:00]} 2. Nf3 {[%clk 0:02:52.4]} 2...
d6 {[%clk 0:03:00.4]} 3. b4 {[%clk 0:02:48.1]} 3... cxb4 {[%clk 0:02:58.1]} 4.
a3 {[%clk 0:02:36.9]} 4... bxa3 {[%clk 0:02:52.6]} 5. d4 {[%clk 0:02:34.8]} 5...
Nc6 {[%clk 0:02:42.6]} 6. Be2 {[%clk 0:02:19]} 6... e6 {[%clk 0:02:36]} 7. O-O
{[%clk 0:02:18.5]} 7... Nf6 {[%clk 0:02:31.8]} 8. Nbd2 {[%clk 0:02:10.9]} 8...
Be7 {[%clk 0:02:21.2]} 9. c3 {[%clk 0:01:56.5]} 9... O-O {[%clk 0:02:20.6]} 10.
Rxa3 {[%clk 0:01:55.6]} 10... d5 {[%clk 0:02:20.1]} 11. e5 {[%clk 0:01:56.3]}
11... Bxa3 {[%clk 0:02:19.4]} 12. Bxa3 {[%clk 0:01:58.2]} 12... Nd7 {[%clk
0:01:57.2]} 13. h4 {[%clk 0:01:40.5]} 13... f6 {[%clk 0:01:40.6]} 14. Bd6 {[%clk
0:00:44.4]} 14... Ne7 {[%clk 0:01:32.1]} 15. Bd3 {[%clk 0:00:17.1]} 15... f5
{[%clk 0:01:31.4]} 16. Ng5 {[%clk 0:00:16.8]} 16... Nb6 {[%clk 0:01:23]} 17.
Ndf3 {[%clk 0:00:07.9]} 17... h6 {[%clk 0:01:23.2]} 18. Nh3 {[%clk 0:00:08.1]}
18... Qe8 {[%clk 0:01:23]} 19. Nf4 {[%clk 0:00:08.1]} 19... Bd7 {[%clk
0:01:22.4]} 20. h5 {[%clk 0:00:07.9]} 20... Nbc8 {[%clk 0:01:22]} 21. Ba3 {[%clk
0:00:07.7]} 21... a6 {[%clk 0:01:13]} 22. Nh4 {[%clk 0:00:08.1]} 22... b5 {[%clk
0:01:11.9]} 23. Nhg6 {[%clk 0:00:06.9]} 23... Nxg6 {[%clk 0:01:12.6]} 24. Nxg6
{[%clk 0:00:04.7]} 24... Rf7 {[%clk 0:01:12.9]} 25. Qb3 {[%clk 0:00:04.6]} 25...
Ne7 {[%clk 0:01:11.8]} 26. Nxe7+ {[%clk 0:00:03.7]} 26... Rxe7 {[%clk
0:01:12.7]} 27. Bxe7 {[%clk 0:00:04.3]} 27... Qxe7 {[%clk 0:01:14.2]} 28. Ra1
{[%clk 0:00:05.8]} 28... Qe8 {[%clk 0:01:08.4]} 29. Qb4 {[%clk 0:00:06.3]} 29...
Qf8 {[%clk 0:01:06.5]} 30. Qa5 {[%clk 0:00:05.4]} 30... Qc8 {[%clk 0:01:04.4]}
31. Bf1 {[%clk 0:00:03.6]} 31... Qb7 {[%clk 0:01:03.8]} 32. Qb4 {[%clk
0:00:04.1]} 32... Bc6 {[%clk 0:01:02]} 33. Qc5 {[%clk 0:00:04.1]} 33... Kf7
{[%clk 0:01:01]} 34. Ra5 {[%clk 0:00:04.7]} 34... Qa7 {[%clk 0:00:59.7]} 35.
Qxc6 {[%clk 0:00:04.5]} 35... Ke7 {[%clk 0:00:53.1]} 36. Qd6+ {[%clk 0:00:05.1]}
36... Kf7 {[%clk 0:00:53.8]} 37. Bxb5 {[%clk 0:00:07]} 37... axb5 {[%clk
0:00:52.9]} 38. Rxa7+ {[%clk 0:00:08.9]} 38... Rxa7 {[%clk 0:00:54.1]} 39. Qb6
{[%clk 0:00:09.6]} 39... Ra1+ {[%clk 0:00:54.6]} 40. Kh2 {[%clk 0:00:09.1]}
40... Rc1 {[%clk 0:00:55.5]} 41. Qxb5 {[%clk 0:00:09.4]} 41... Rxc3 {[%clk
0:00:56.4]} 42. Qd7+ {[%clk 0:00:10.4]} 42... Kg8 {[%clk 0:00:57]} 43. Qxe6+
{[%clk 0:00:12.3]} 43... Kh8 {[%clk 0:00:57.8]} 44. Qxf5 {[%clk 0:00:10.7]}
44... Rc4 {[%clk 0:00:57.8]} 45. Qf8+ {[%clk 0:00:11]} 45... Kh7 {[%clk
0:00:58.3]} 46. Qf5+ {[%clk 0:00:12.9]} 46... Kh8 {[%clk 0:00:58.2]} 47. e6
{[%clk 0:00:14.5]} 1-0

[Event "*** Titled Tuesday Blitz"]
[Site "Chess.com"]
[Date "2019.03.05"]
[Round "4"]
[White "dreamist"]
[Black "AvitalBor"]
[Result "1-0"]
[WhiteElo "2726"]
[BlackElo "2634"]
[TimeControl "180+2"]
[EndTime "13:56:30 PST"]
[Termination "dreamist won on time"]

1. c4 {[%clk 0:03:01.9]} 1... e6 {[%clk 0:03:00.4]} 2. d4 {[%clk 0:02:57.2]}
2... d5 {[%clk 0:03:02.3]} 3. Nc3 {[%clk 0:02:57.4]} 3... Nf6 {[%clk 0:03:02.7]}
4. cxd5 {[%clk 0:02:45.2]} 4... exd5 {[%clk 0:03:04.6]} 5. Bg5 {[%clk 0:02:36]}
5... c6 {[%clk 0:03:04.6]} 6. Qc2 {[%clk 0:02:33.6]} 6... g6 {[%clk 0:03:01.7]}
7. Bxf6 {[%clk 0:02:24]} 7... Qxf6 {[%clk 0:03:01.8]} 8. Nxd5 {[%clk 0:02:24.6]}
8... Qd8 {[%clk 0:02:59.5]} 9. Nc3 {[%clk 0:02:12.4]} 9... Qxd4 {[%clk
0:02:57.2]} 10. Nf3 {[%clk 0:02:13.8]} 10... Qf6 {[%clk 0:02:48.8]} 11. e4
{[%clk 0:02:11.3]} 11... Be6 {[%clk 0:02:47.4]} 12. e5 {[%clk 0:01:53.5]} 12...
Qe7 {[%clk 0:02:47.6]} 13. a3 {[%clk 0:01:40.2]} 13... Bg7 {[%clk 0:02:38.2]}
14. O-O-O {[%clk 0:01:40.8]} 14... Nd7 {[%clk 0:02:38.3]} 15. Ne4 {[%clk
0:01:22.6]} 15... O-O {[%clk 0:02:37.6]} 16. h4 {[%clk 0:01:22.2]} 16... Nxe5
{[%clk 0:02:37.8]} 17. h5 {[%clk 0:01:11.6]} 17... Rad8 {[%clk 0:02:28.3]} 18.
Be2 {[%clk 0:01:10.1]} 18... Bf5 {[%clk 0:02:25.6]} 19. Nd4 {[%clk 0:01:04.4]}
19... Bxe4 {[%clk 0:02:13.1]} 20. Qxe4 {[%clk 0:01:04.2]} 20... Rfe8 {[%clk
0:02:13.9]} 21. Qc2 {[%clk 0:01:02.9]} 21... Qg5+ {[%clk 0:01:57.1]} 22. Kb1
{[%clk 0:01:03.1]} 22... Qxg2 {[%clk 0:01:57.4]} 23. f4 {[%clk 0:01:03.6]} 23...
Rxd4 {[%clk 0:01:43.9]} 24. fxe5 {[%clk 0:01:04.2]} 24... Rxd1+ {[%clk
0:01:43.1]} 25. Rxd1 {[%clk 0:01:01]} 25... Bxe5 {[%clk 0:01:42.6]} 26. hxg6
{[%clk 0:00:59.5]} 26... hxg6 {[%clk 0:01:42.2]} 27. Rd7 {[%clk 0:01:00]} 27...
Bf6 {[%clk 0:01:33.3]} 28. Qb3 {[%clk 0:00:37.7]} 28... Re7 {[%clk 0:01:14]} 29.
Rxe7 {[%clk 0:00:32.1]} 29... Bxe7 {[%clk 0:01:15.9]} 30. Bc4 {[%clk 0:00:33.4]}
30... Qf3 {[%clk 0:01:10.8]} 31. Qxf3 {[%clk 0:00:11.2]} 1-0

[Event "*** Titled Tuesday Blitz"]
[Site "Chess.com"]
[Date "2019.03.05"]
[Round "4"]
[White "NateSolon"]
[Black "NeverEverForever1990"]
[Result "0-1"]
[WhiteElo "2556"]
[BlackElo "2358"]
[TimeControl "180+2"]
[EndTime "13:56:30 PST"]
[Termination "NeverEverForever1990 won by resignation"]

1. d4 {[%clk 0:03:01.9]} 1... Nf6 {[%clk 0:03:00.6]} 2. Nf3 {[%clk 0:02:59.7]}
2... d5 {[%clk 0:02:58.5]} 3. c4 {[%clk 0:02:59.8]} 3... e6 {[%clk 0:02:54.3]}
4. Nc3 {[%clk 0:03:00.3]} 4... c6 {[%clk 0:02:55]} 5. Qc2 {[%clk 0:02:53.8]}
5... Nbd7 {[%clk 0:02:55.2]} 6. e4 {[%clk 0:02:49.3]} 6... dxe4 {[%clk
0:02:51.1]} 7. Nxe4 {[%clk 0:02:50.2]} 7... Nxe4 {[%clk 0:02:51.6]} 8. Qxe4
{[%clk 0:02:52.1]} 8... Bb4+ {[%clk 0:02:29.7]} 9. Bd2 {[%clk 0:02:52.9]} 9...
Bxd2+ {[%clk 0:02:30.8]} 10. Nxd2 {[%clk 0:02:54.8]} 10... O-O {[%clk
0:02:30.9]} 11. O-O-O {[%clk 0:02:41.1]} 11... a5 {[%clk 0:02:16.6]} 12. Nf3
{[%clk 0:02:41.3]} 12... a4 {[%clk 0:02:02.6]} 13. Bd3 {[%clk 0:02:14.3]} 13...
Nf6 {[%clk 0:02:01]} 14. Qh4 {[%clk 0:02:15.3]} 14... b5 {[%clk 0:01:58.4]} 15.
c5 {[%clk 0:02:06.1]} 15... h6 {[%clk 0:01:37.2]} 16. Kb1 {[%clk 0:01:29.6]}
16... b4 {[%clk 0:01:28.7]} 17. g4 {[%clk 0:01:16.1]} 17... Ba6 {[%clk
0:01:21.6]} 18. g5 {[%clk 0:01:11.7]} 18... Bxd3+ {[%clk 0:01:13]} 19. Rxd3
{[%clk 0:01:13.6]} 19... Nh7 {[%clk 0:01:04.9]} 20. g6 {[%clk 0:01:09]} 20...
Ng5 {[%clk 0:00:57.8]} 21. Ne5 {[%clk 0:00:55.5]} 21... Qd5 {[%clk 0:00:42.6]}
22. Rg1 {[%clk 0:00:56.1]} 22... f6 {[%clk 0:00:43.8]} 23. f4 {[%clk 0:00:46]}
23... fxe5 {[%clk 0:00:41]} 24. fxg5 {[%clk 0:00:47.3]} 24... Rf4 {[%clk
0:00:35.6]} 25. Qh3 {[%clk 0:00:44.9]} 25... Rxd4 {[%clk 0:00:29.1]} 26. Rxd4
{[%clk 0:00:45.5]} 26... Qxd4 {[%clk 0:00:30.1]} 27. Qxe6+ {[%clk 0:00:42.6]}
27... Kh8 {[%clk 0:00:30.7]} 28. Qg4 {[%clk 0:00:33.3]} 28... Qd3+ {[%clk
0:00:22.5]} 29. Ka1 {[%clk 0:00:34.3]} 29... Qxg6 {[%clk 0:00:22.9]} 30. Qxb4
{[%clk 0:00:29.7]} 30... Rf8 {[%clk 0:00:21.4]} 31. h4 {[%clk 0:00:22]} 31...
Qd3 {[%clk 0:00:14.9]} 32. Qe1 {[%clk 0:00:12.3]} 32... a3 {[%clk 0:00:13.8]}
33. Qc1 {[%clk 0:00:02.4]} 33... Qd4 {[%clk 0:00:12.8]} 34. gxh6 {[%clk
0:00:02.9]} 34... axb2+ {[%clk 0:00:13.8]} 35. Qxb2 {[%clk 0:00:04.8]} 35...
Qxg1+ {[%clk 0:00:14.9]} 0-1

[Event "*** Titled Tuesday Blitz"]
[Site "Chess.com"]
[Date "2019.03.05"]
[Round "4"]
[White "GrandGlacier"]
[Black "MathiasWomacka"]
[Result "0-1"]
[WhiteElo "2143"]
[BlackElo "2268"]
[TimeControl "180+2"]
[EndTime "13:56:33 PST"]
[Termination "MathiasWomacka won by resignation"]

1. e4 {[%clk 0:03:01.9]} 1... c5 {[%clk 0:03:00.5]} 2. Nf3 {[%clk 0:03:02.8]}
2... d6 {[%clk 0:03:02]} 3. d4 {[%clk 0:03:03.4]} 3... cxd4 {[%clk 0:03:03.9]}
4. Nxd4 {[%clk 0:03:04.9]} 4... Nf6 {[%clk 0:03:05.1]} 5. Nc3 {[%clk 0:03:06.4]}
5... a6 {[%clk 0:03:06.1]} 6. h3 {[%clk 0:03:07.9]} 6... e6 {[%clk 0:03:05.8]}
7. g4 {[%clk 0:03:08.7]} 7... b5 {[%clk 0:03:05.3]} 8. Bg2 {[%clk 0:03:08.7]}
8... Bb7 {[%clk 0:03:06.8]} 9. O-O {[%clk 0:03:09.4]} 9... Nfd7 {[%clk
0:03:07.8]} 10. Re1 {[%clk 0:03:04.9]} 10... Nc6 {[%clk 0:03:08.7]} 11. Nxc6
{[%clk 0:02:57.8]} 11... Bxc6 {[%clk 0:03:10.6]} 12. a4 {[%clk 0:02:58.1]} 12...
b4 {[%clk 0:03:10.9]} 13. Nd5 {[%clk 0:02:59.4]} 13... a5 {[%clk 0:03:12.2]} 14.
Bf4 {[%clk 0:02:50.6]} 14... Rc8 {[%clk 0:03:11.3]} 15. Ne3 {[%clk 0:02:49.7]}
15... Ne5 {[%clk 0:03:09]} 16. Bg3 {[%clk 0:02:46.4]} 16... Be7 {[%clk
0:03:09.1]} 17. f4 {[%clk 0:02:43.2]} 17... Ng6 {[%clk 0:03:09.9]} 18. Nc4
{[%clk 0:02:21.8]} 18... Bxe4 {[%clk 0:02:35.2]} 19. Nxd6+ {[%clk 0:02:04.9]}
19... Bxd6 {[%clk 0:02:29.7]} 20. Rxe4 {[%clk 0:02:00.8]} 20... O-O {[%clk
0:02:21.7]} 21. Qe2 {[%clk 0:01:51]} 21... Qc7 {[%clk 0:02:17.6]} 22. Qf3 {[%clk
0:01:04]} 22... Qxc2 {[%clk 0:02:11]} 23. h4 {[%clk 0:00:59.1]} 23... Qxb2
{[%clk 0:02:03.9]} 24. Rd1 {[%clk 0:00:59.4]} 24... Rc3 {[%clk 0:01:59.8]} 25.
Rd3 {[%clk 0:00:42.8]} 25... Rfc8 {[%clk 0:01:31.4]} 26. h5 {[%clk 0:00:42.2]}
26... Rxd3 {[%clk 0:01:19]} 27. Qxd3 {[%clk 0:00:42.7]} 27... Rc3 {[%clk
0:01:19.9]} 28. Qe2 {[%clk 0:00:21.2]} 28... Qxe2 {[%clk 0:01:14.1]} 29. Rxe2
{[%clk 0:00:22.1]} 29... Rxg3 {[%clk 0:01:12.7]} 30. hxg6 {[%clk 0:00:21.9]}
30... hxg6 {[%clk 0:01:14.6]} 31. f5 {[%clk 0:00:16.9]} 31... gxf5 {[%clk
0:01:10.2]} 32. gxf5 {[%clk 0:00:17.8]} 32... exf5 {[%clk 0:01:11.4]} 33. Re8+
{[%clk 0:00:18.4]} 33... Kh7 {[%clk 0:01:11.9]} 34. Kf2 {[%clk 0:00:20.3]} 34...
Ra3 {[%clk 0:01:09.5]} 35. Bd5 {[%clk 0:00:20.7]} 35... b3 {[%clk 0:00:56.1]}
36. Bxf7 {[%clk 0:00:19.4]} 36... b2 {[%clk 0:00:55.1]} 37. Bg8+ {[%clk
0:00:06.1]} 37... Kh6 {[%clk 0:00:54]} 38. Re6+ {[%clk 0:00:06.9]} 38... Kg5
{[%clk 0:00:54.2]} 0-1

[Event "*** Titled Tuesday Blitz"]
[Site "Chess.com"]
[Date "2019.03.05"]
[Round "4"]
[White "FearNoEvil12"]
[Black "wanyaland"]
[Result "0-1"]
[WhiteElo "1930"]
[BlackElo "2114"]
[TimeControl "180+2"]
[EndTime "13:56:40 PST"]
[Termination "wanyaland won by checkmate"]

1. e4 {[%clk 0:03:01.9]} 1... e5 {[%clk 0:02:59.9]} 2. d4 {[%clk 0:03:02.2]}
2... exd4 {[%clk 0:03:00.4]} 3. Bc4 {[%clk 0:03:03.8]} 3... Nf6 {[%clk
0:02:58.1]} 4. Nf3 {[%clk 0:03:05.1]} 4... Nxe4 {[%clk 0:02:55.1]} 5. Qxd4
{[%clk 0:03:05.1]} 5... Nf6 {[%clk 0:02:53.7]} 6. Bg5 {[%clk 0:03:04]} 6... Be7
{[%clk 0:02:54.7]} 7. Nc3 {[%clk 0:03:03.6]} 7... c6 {[%clk 0:02:53.5]} 8. O-O-O
{[%clk 0:03:03.5]} 8... d5 {[%clk 0:02:53.6]} 9. Qh4 {[%clk 0:03:04.7]} 9... Qa5
{[%clk 0:02:45.8]} 10. Rhe1 {[%clk 0:02:53.2]} 10... Be6 {[%clk 0:02:41.1]} 11.
Nd4 {[%clk 0:02:50.2]} 11... dxc4 {[%clk 0:02:39]} 12. Rxe6 {[%clk 0:02:42]}
12... fxe6 {[%clk 0:02:40.9]} 13. Nxe6 {[%clk 0:02:42.8]} 13... Kf7 {[%clk
0:02:36.3]} 14. Re1 {[%clk 0:02:08.5]} 14... Nbd7 {[%clk 0:02:24.4]} 15. Nxg7
{[%clk 0:02:07.1]} 15... h6 {[%clk 0:02:07.2]} 16. Bd2 {[%clk 0:01:27]} 16...
Qc5 {[%clk 0:01:56.4]} 17. Ne6 {[%clk 0:01:23]} 17... Qd6 {[%clk 0:01:36.9]} 18.
Qxc4 {[%clk 0:01:20.7]} 18... Nd5 {[%clk 0:01:31]} 19. Nf4 {[%clk 0:00:49.8]}
19... Nf6 {[%clk 0:01:27.7]} 20. Ne4 {[%clk 0:00:38.9]} 20... Nxe4 {[%clk
0:01:24.6]} 21. Qxe4 {[%clk 0:00:39.5]} 21... Bg5 {[%clk 0:01:19]} 22. Qf5+
{[%clk 0:00:37.3]} 22... Qf6 {[%clk 0:00:56.7]} 23. Qd7+ {[%clk 0:00:37.2]}
23... Ne7 {[%clk 0:00:54.6]} 24. g3 {[%clk 0:00:33]} 24... Rad8 {[%clk
0:00:49.4]} 25. Qxb7 {[%clk 0:00:25.6]} 25... Rxd2 {[%clk 0:00:48.9]} 26. Kxd2
{[%clk 0:00:24.1]} 26... Bxf4+ {[%clk 0:00:50]} 27. gxf4 {[%clk 0:00:25.1]}
27... Qxf4+ {[%clk 0:00:51.5]} 28. Ke2 {[%clk 0:00:23.7]} 28... Rb8 {[%clk
0:00:38]} 29. Qxa7 {[%clk 0:00:23.5]} 29... Rxb2 {[%clk 0:00:35.1]} 30. Kf1
{[%clk 0:00:24.3]} 30... Qc4+ {[%clk 0:00:29.5]} 31. Kg1 {[%clk 0:00:24.1]}
31... Qg4+ {[%clk 0:00:28.9]} 32. Kf1 {[%clk 0:00:24.4]} 32... Qg5 {[%clk
0:00:26.3]} 33. Qd4 {[%clk 0:00:19.4]} 33... Rxc2 {[%clk 0:00:20.6]} 34. Qd3
{[%clk 0:00:18.5]} 34... Qb5 {[%clk 0:00:21.4]} 35. Qxb5 {[%clk 0:00:18.4]}
35... cxb5 {[%clk 0:00:23.3]} 36. Ra1 {[%clk 0:00:18.7]} 36... b4 {[%clk
0:00:23.1]} 37. Kg2 {[%clk 0:00:18.9]} 37... Nc6 {[%clk 0:00:24]} 38. Kf3 {[%clk
0:00:19.9]} 38... Ke6 {[%clk 0:00:25.3]} 39. Ke3 {[%clk 0:00:17]} 39... Kd5
{[%clk 0:00:25.6]} 40. f4 {[%clk 0:00:17.3]} 40... Kc4 {[%clk 0:00:26.5]} 41. h4
{[%clk 0:00:17]} 41... Nd4 {[%clk 0:00:27]} 42. Ke4 {[%clk 0:00:12.7]} 42...
Re2# {[%clk 0:00:27.6]} 0-1